[Event "*** Titled Tuesday Blitz"]
[Site "Chess.com"]
[Date "2020.02.04"]
[Round "1"]
[White "arminmusovic"]
[Black "pawnwonder"]
[Result "1-0"]
[WhiteElo "2536"]
[BlackElo "2085"]
[TimeControl "180+2"]
[EndTime "13:11:19 PST"]
[Termination "arminmusovic won by resignation"]

1. e4 {[%clk 0:02:58.8]} 1... c5 {[%clk 0:03:00.8]} 2. c3 {[%clk 0:02:56.1]}
2... Nf6 {[%clk 0:03:00.9]} 3. f3 {[%clk 0:02:56.6]} 3... e6 {[%clk 0:02:54.1]}
4. d4 {[%clk 0:02:56.9]} 4... Nxe4 {[%clk 0:02:44.5]} 5. fxe4 {[%clk 0:02:58.2]}
5... Qh4+ {[%clk 0:02:45.3]} 6. Kd2 {[%clk 0:02:59.4]} 6... cxd4 {[%clk
0:02:45.8]} 7. Nf3 {[%clk 0:02:49.3]} 7... Qxe4 {[%clk 0:02:41.3]} 8. Bd3 {[%clk
0:02:50.5]} 8... Qg4 {[%clk 0:02:35.4]} 9. Qe2 {[%clk 0:02:43.5]} 9... dxc3+
{[%clk 0:02:28]} 10. Nxc3 {[%clk 0:02:44.4]} 10... Nc6 {[%clk 0:02:29.3]} 11.
Kc2 {[%clk 0:02:35.5]} 11... Qxf3 {[%clk 0:02:12.1]} 12. Qxf3 {[%clk 0:02:25.7]}
12... Nd4+ {[%clk 0:02:12.6]} 13. Kb1 {[%clk 0:02:26]} 13... Nxf3 {[%clk
0:02:14.4]} 14. gxf3 {[%clk 0:02:27.9]} 14... a6 {[%clk 0:02:14.2]} 15. a4
{[%clk 0:02:27.4]} 15... d6 {[%clk 0:02:09.3]} 16. Rg1 {[%clk 0:02:26.7]} 16...
Bd7 {[%clk 0:02:09]} 17. a5 {[%clk 0:02:23.8]} 17... Bc6 {[%clk 0:02:09.4]} 18.
f4 {[%clk 0:02:04.1]} 18... g6 {[%clk 0:02:03.8]} 19. Na4 {[%clk 0:01:55.1]}
19... Bg7 {[%clk 0:01:59.2]} 20. Nb6 {[%clk 0:01:56.1]} 20... Rd8 {[%clk
0:01:59.8]} 21. f5 {[%clk 0:01:48.2]} 21... Bd4 {[%clk 0:01:54.5]} 22. Re1
{[%clk 0:01:46.1]} 22... e5 {[%clk 0:01:45.8]} 23. Bg5 {[%clk 0:01:41.2]} 23...
Rb8 {[%clk 0:01:42.4]} 24. h4 {[%clk 0:01:38.9]} 24... Bxb6 {[%clk 0:01:24.5]}
25. axb6 {[%clk 0:01:39.4]} 25... Kd7 {[%clk 0:01:25.6]} 26. Ra5 {[%clk
0:01:37.2]} 26... Rbe8 {[%clk 0:01:14]} 27. Ra3 {[%clk 0:01:30.5]} 27... e4
{[%clk 0:01:00.6]} 28. Bc4 {[%clk 0:01:26.9]} 28... d5 {[%clk 0:00:59.6]} 29.
Bf1 {[%clk 0:01:13.9]} 29... f6 {[%clk 0:00:40.5]} 30. Bxf6 {[%clk 0:01:04.3]}
30... Rhf8 {[%clk 0:00:40.4]} 31. Bg7 {[%clk 0:01:05.8]} 31... Rf7 {[%clk
0:00:32.3]} 32. f6 {[%clk 0:01:05]} 32... Kd6 {[%clk 0:00:32.7]} 33. h5 {[%clk
0:01:03.2]} 33... Re5 {[%clk 0:00:31.1]} 34. h6 {[%clk 0:00:59.7]} 34... Rf5
{[%clk 0:00:23.9]} 35. Bh3 {[%clk 0:00:47.2]} 35... Rf2 {[%clk 0:00:20.4]} 36.
Rc1 {[%clk 0:00:48.1]} 36... Rh2 {[%clk 0:00:20]} 37. Ka2 {[%clk 0:00:43.1]}
37... d4 {[%clk 0:00:21.2]} 38. Rxc6+ {[%clk 0:00:33.7]} 38... Kxc6 {[%clk
0:00:21.7]} 39. Be6 {[%clk 0:00:34.5]} 39... Rxf6 {[%clk 0:00:20.2]} 40. Bxf6
{[%clk 0:00:35.7]} 40... d3 {[%clk 0:00:22]} 41. Bg5 {[%clk 0:00:31]} 41... Rh5
{[%clk 0:00:20.8]} 42. Bc1 {[%clk 0:00:27.8]} 42... Kxb6 {[%clk 0:00:21.4]} 43.
Rb3+ {[%clk 0:00:26]} 43... Kc6 {[%clk 0:00:21.8]} 44. Bc8 {[%clk 0:00:27.2]}
44... Ra5+ {[%clk 0:00:22.4]} 45. Kb1 {[%clk 0:00:28]} 45... b6 {[%clk
0:00:22.8]} 46. Be6 {[%clk 0:00:27]} 46... Re5 {[%clk 0:00:23]} 47. Bg8 {[%clk
0:00:27.8]} 47... Rh5 {[%clk 0:00:23.5]} 48. Be3 {[%clk 0:00:28.2]} 48... b5
{[%clk 0:00:20.6]} 49. Rc3+ {[%clk 0:00:29]} 49... Kb7 {[%clk 0:00:19.6]} 50.
Bxh7 {[%clk 0:00:29.7]} 50... Rh3 {[%clk 0:00:20]} 51. Bc1 {[%clk 0:00:29.4]}
51... Rh1 {[%clk 0:00:19.9]} 52. Bxg6 {[%clk 0:00:27.6]} 52... d2 {[%clk
0:00:19.9]} 53. Bxe4+ {[%clk 0:00:28.7]} 53... Kb6 {[%clk 0:00:18.8]} 54. Bf3
{[%clk 0:00:29.6]} 54... dxc1=Q+ {[%clk 0:00:18.6]} 55. Rxc1 {[%clk 0:00:30.5]}
55... Rxh6 {[%clk 0:00:19.5]} 56. Bd1 {[%clk 0:00:30.8]} 56... a5 {[%clk
0:00:19.9]} 57. Bb3 {[%clk 0:00:30.7]} 57... a4 {[%clk 0:00:21]} 58. Bf7 {[%clk
0:00:31.4]} 58... Rf6 {[%clk 0:00:21.5]} 59. Bh5 {[%clk 0:00:32]} 59... Rf5
{[%clk 0:00:22.3]} 60. Rh1 {[%clk 0:00:33]} 60... Rf8 {[%clk 0:00:22.7]} 61. Bd1
{[%clk 0:00:33.4]} 61... Rf5 {[%clk 0:00:22]} 62. Bc2 {[%clk 0:00:33.6]} 62...
Rg5 {[%clk 0:00:23.1]} 63. Rh6+ {[%clk 0:00:32.5]} 63... Ka5 {[%clk 0:00:24.2]}
64. Rh8 {[%clk 0:00:34.4]} 64... Kb6 {[%clk 0:00:22.9]} 65. Ka2 {[%clk
0:00:33.7]} 65... Ka7 {[%clk 0:00:20.7]} 66. Rh6 {[%clk 0:00:34.4]} 66... Kb7
{[%clk 0:00:21.3]} 67. Be4+ {[%clk 0:00:33.7]} 67... Ka7 {[%clk 0:00:22.7]} 68.
Rc6 {[%clk 0:00:34.7]} 68... Re5 {[%clk 0:00:23.2]} 69. Bf3 {[%clk 0:00:35.3]}
69... Rf5 {[%clk 0:00:23.9]} 70. Be2 {[%clk 0:00:35.6]} 70... Rg5 {[%clk
0:00:23.7]} 71. Re6 {[%clk 0:00:36.1]} 71... Kb7 {[%clk 0:00:23.5]} 72. Ka3
{[%clk 0:00:37.5]} 72... Rd5 {[%clk 0:00:16.2]} 73. Bf3 {[%clk 0:00:37.7]} 1-0

[Event "*** Titled Tuesday Blitz"]
[Site "Chess.com"]
[Date "2020.02.04"]
[Round "1"]
[White "bazar-wokzal"]
[Black "CrushingKings"]
[Result "0-1"]
[WhiteElo "2534"]
[BlackElo "2152"]
[TimeControl "180+2"]
[EndTime "13:11:41 PST"]
[Termination "CrushingKings won by resignation"]

1. e4 {[%clk 0:03:01.6]} 1... c6 {[%clk 0:02:59.4]} 2. d4 {[%clk 0:03:01.8]}
2... g6 {[%clk 0:03:00.9]} 3. Nc3 {[%clk 0:03:01.7]} 3... Bg7 {[%clk 0:03:02.3]}
4. Bf4 {[%clk 0:03:02.5]} 4... d5 {[%clk 0:03:03.3]} 5. e5 {[%clk 0:03:02.1]}
5... f6 {[%clk 0:02:55.7]} 6. Qd2 {[%clk 0:03:03.1]} 6... Nd7 {[%clk 0:02:51.4]}
7. Nf3 {[%clk 0:03:01.4]} 7... fxe5 {[%clk 0:02:48]} 8. dxe5 {[%clk 0:03:01.9]}
8... Nc5 {[%clk 0:02:49.1]} 9. O-O-O {[%clk 0:03:01]} 9... Bg4 {[%clk
0:02:38.9]} 10. Be2 {[%clk 0:03:00.7]} 10... e6 {[%clk 0:02:17.7]} 11. Ng5
{[%clk 0:02:50.1]} 11... Bxe2 {[%clk 0:02:13.3]} 12. Nxe2 {[%clk 0:02:47.9]}
12... h6 {[%clk 0:02:09.9]} 13. Be3 {[%clk 0:02:41.7]} 13... hxg5 {[%clk
0:01:52.8]} 14. Bxc5 {[%clk 0:02:41.9]} 14... Bxe5 {[%clk 0:01:54.3]} 15. Nd4
{[%clk 0:02:41.6]} 15... Bf4 {[%clk 0:01:54.5]} 16. Nxe6 {[%clk 0:02:40.1]}
16... Bxd2+ {[%clk 0:01:54.5]} 17. Rxd2 {[%clk 0:02:41.4]} 17... Qd7 {[%clk
0:01:53.9]} 18. Re1 {[%clk 0:02:41.8]} 18... Ne7 {[%clk 0:01:22.1]} 19. Bxe7
{[%clk 0:02:29.7]} 19... Kf7 {[%clk 0:01:22.3]} 20. Nxg5+ {[%clk 0:02:17.7]}
20... Kg7 {[%clk 0:01:21.1]} 21. Ne6+ {[%clk 0:02:06.1]} 21... Kg8 {[%clk
0:01:21.2]} 22. Bf6 {[%clk 0:02:00.4]} 22... Rxh2 {[%clk 0:01:05.1]} 23. Rde2
{[%clk 0:01:53.4]} 23... Re8 {[%clk 0:01:00.2]} 24. Kd1 {[%clk 0:01:40.2]} 24...
Rxg2 {[%clk 0:00:42.8]} 25. Bd4 {[%clk 0:01:13.2]} 25... Rg4 {[%clk 0:00:34.2]}
26. Bxa7 {[%clk 0:01:09.8]} 26... Re4 {[%clk 0:00:29.9]} 27. Nc5 {[%clk
0:01:04]} 27... Rxe2 {[%clk 0:00:28.3]} 28. Nxd7 {[%clk 0:01:03.3]} 28... Rxe1+
{[%clk 0:00:29.4]} 29. Kd2 {[%clk 0:01:04.8]} 29... R1e6 {[%clk 0:00:18.8]} 30.
Bd4 {[%clk 0:01:02.8]} 30... Kf7 {[%clk 0:00:19.7]} 31. Nc5 {[%clk 0:00:58.2]}
31... Re2+ {[%clk 0:00:20.3]} 32. Kd3 {[%clk 0:00:58.4]} 32... b6 {[%clk
0:00:21.5]} 33. Na4 {[%clk 0:00:48]} 33... c5 {[%clk 0:00:21.7]} 34. Be3 {[%clk
0:00:48.2]} 34... R2xe3+ {[%clk 0:00:14.8]} 35. fxe3 {[%clk 0:00:49.2]} 35...
Re6 {[%clk 0:00:16.3]} 36. Nc3 {[%clk 0:00:43.7]} 36... Rd6 {[%clk 0:00:13.7]}
37. e4 {[%clk 0:00:36.8]} 37... dxe4+ {[%clk 0:00:12]} 38. Kxe4 {[%clk
0:00:37.7]} 38... Rf6 {[%clk 0:00:13.5]} 39. Nd5 {[%clk 0:00:36.5]} 39... Rf2
{[%clk 0:00:14.5]} 40. Nxb6 {[%clk 0:00:36.2]} 40... g5 {[%clk 0:00:14.9]} 41.
Nc4 {[%clk 0:00:15.5]} 41... Rxc2 {[%clk 0:00:10.3]} 42. Kd3 {[%clk 0:00:13.5]}
42... Rg2 {[%clk 0:00:07.8]} 43. a4 {[%clk 0:00:12.2]} 43... g4 {[%clk
0:00:07.3]} 44. a5 {[%clk 0:00:12.9]} 44... Rh2 {[%clk 0:00:08.3]} 45. a6 {[%clk
0:00:13.1]} 45... Rh8 {[%clk 0:00:09.6]} 46. Ne5+ {[%clk 0:00:13.2]} 46... Ke6
{[%clk 0:00:10.6]} 47. Nxg4 {[%clk 0:00:14.6]} 47... Kd5 {[%clk 0:00:11.9]} 48.
Ne3+ {[%clk 0:00:15.4]} 48... Kc6 {[%clk 0:00:13]} 49. Kc4 {[%clk 0:00:16.7]}
49... Rh4+ {[%clk 0:00:14.5]} 50. Kc3 {[%clk 0:00:17.8]} 50... Kb5 {[%clk
0:00:15.4]} 51. a7 {[%clk 0:00:18]} 51... Ra4 {[%clk 0:00:16.2]} 52. Nd5 {[%clk
0:00:18.6]} 52... Kc6 {[%clk 0:00:17.6]} 53. Ne7+ {[%clk 0:00:18]} 53... Kd7
{[%clk 0:00:15.5]} 54. Nd5 {[%clk 0:00:18.1]} 54... Rxa7 {[%clk 0:00:16.7]} 55.
b3 {[%clk 0:00:19]} 55... Kc6 {[%clk 0:00:17.9]} 56. Ne3 {[%clk 0:00:18.7]}
56... Rh7 {[%clk 0:00:19.2]} 57. Nc4 {[%clk 0:00:19.6]} 57... Rh3+ {[%clk
0:00:20.2]} 58. Kb2 {[%clk 0:00:20.6]} 58... Kb5 {[%clk 0:00:21.7]} 59. Ka3
{[%clk 0:00:21.7]} 59... Rc3 {[%clk 0:00:21.1]} 60. Nd6+ {[%clk 0:00:22.4]}
60... Kc6 {[%clk 0:00:21.8]} 61. Nc4 {[%clk 0:00:23.1]} 61... Kd5 {[%clk
0:00:23.2]} 62. Nb6+ {[%clk 0:00:23.9]} 62... Kd4 {[%clk 0:00:23.9]} 63. Ka4
{[%clk 0:00:24.9]} 63... Rc1 {[%clk 0:00:23]} 64. Nd7 {[%clk 0:00:22.1]} 64...
Kd5 {[%clk 0:00:17.3]} 65. Kb5 {[%clk 0:00:19.7]} 65... Rc3 {[%clk 0:00:18.3]}
66. b4 {[%clk 0:00:20.5]} 66... c4 {[%clk 0:00:19.6]} 67. Nb6+ {[%clk
0:00:21.1]} 67... Kd4 {[%clk 0:00:20.8]} 68. Na4 {[%clk 0:00:21.5]} 68... Rb3
{[%clk 0:00:10]} 69. Nc5 {[%clk 0:00:16.1]} 69... Rb1 {[%clk 0:00:11.2]} 70.
Ne6+ {[%clk 0:00:15]} 70... Ke5 {[%clk 0:00:10]} 71. Nc5 {[%clk 0:00:10.9]}
71... c3 {[%clk 0:00:10.5]} 72. Kc4 {[%clk 0:00:06.4]} 72... c2 {[%clk
0:00:11.6]} 73. Nd3+ {[%clk 0:00:07.3]} 73... Kd6 {[%clk 0:00:12.4]} 74. Kc3
{[%clk 0:00:07.6]} 74... c1=Q+ {[%clk 0:00:13.2]} 75. Nxc1 {[%clk 0:00:08.8]}
75... Rxc1+ {[%clk 0:00:15.1]} 0-1

[Event "*** Titled Tuesday Blitz"]
[Site "Chess.com"]
[Date "2020.02.04"]
[Round "1"]
[White "KhazarBabazada"]
[Black "SlavenPastar"]
[Result "1/2-1/2"]
[WhiteElo "2897"]
[BlackElo "2487"]
[TimeControl "180+2"]
[EndTime "13:13:37 PST"]
[Termination "Game drawn by agreement"]

1. e4 {[%clk 0:03:01.7]} 1... b6 {[%clk 0:03:00.5]} 2. d4 {[%clk 0:03:02.6]}
2... Bb7 {[%clk 0:03:02]} 3. Nc3 {[%clk 0:03:03.9]} 3... e6 {[%clk 0:03:03.5]}
4. Nf3 {[%clk 0:03:05.4]} 4... Bb4 {[%clk 0:03:03]} 5. Bd3 {[%clk 0:03:05.4]}
5... Nf6 {[%clk 0:03:03.3]} 6. Qe2 {[%clk 0:03:05.5]} 6... d5 {[%clk 0:03:03.7]}
7. e5 {[%clk 0:03:00.2]} 7... Ne4 {[%clk 0:03:04.5]} 8. Bd2 {[%clk 0:03:00.4]}
8... Nxd2 {[%clk 0:03:03.3]} 9. Qxd2 {[%clk 0:03:01.9]} 9... c5 {[%clk
0:03:04.4]} 10. a3 {[%clk 0:02:49.6]} 10... Ba5 {[%clk 0:03:03.6]} 11. O-O
{[%clk 0:02:48]} 11... O-O {[%clk 0:02:55.9]} 12. Qf4 {[%clk 0:02:47]} 12...
Bxc3 {[%clk 0:02:46]} 13. bxc3 {[%clk 0:02:44.7]} 13... Ba6 {[%clk 0:02:27.5]}
14. Rad1 {[%clk 0:02:26.6]} 14... h6 {[%clk 0:01:46.8]} 15. h4 {[%clk
0:02:09.7]} 15... Bxd3 {[%clk 0:01:40.6]} 16. Rxd3 {[%clk 0:02:11.6]} 16... Nc6
{[%clk 0:01:42.2]} 17. dxc5 {[%clk 0:02:06.4]} 17... bxc5 {[%clk 0:01:41]} 18.
c4 {[%clk 0:01:57.3]} 18... d4 {[%clk 0:01:11.5]} 19. c3 {[%clk 0:01:57.1]}
19... Qa5 {[%clk 0:01:10]} 20. cxd4 {[%clk 0:01:50.4]} 20... cxd4 {[%clk
0:01:11.3]} 21. Nxd4 {[%clk 0:01:45.6]} 21... Qxe5 {[%clk 0:01:12]} 22. Qxe5
{[%clk 0:01:41.1]} 22... Nxe5 {[%clk 0:01:13.9]} 23. Rc3 {[%clk 0:01:43]} 23...
Rfd8 {[%clk 0:01:11.7]} 24. Re1 {[%clk 0:00:55.3]} 24... Rxd4 {[%clk 0:00:56.6]}
25. Rxe5 {[%clk 0:00:56.3]} 25... Rc8 {[%clk 0:00:49]} 26. c5 {[%clk 0:00:56.4]}
26... Rxh4 {[%clk 0:00:43.1]} 27. c6 {[%clk 0:00:56.4]} 27... Kf8 {[%clk
0:00:26.7]} 28. Rb5 {[%clk 0:00:55.4]} 28... Rd4 {[%clk 0:00:16.3]} 29. Rb7
{[%clk 0:00:54.3]} 29... Rd6 {[%clk 0:00:13.6]} 30. c7 {[%clk 0:00:53.9]} 30...
Ke8 {[%clk 0:00:14.4]} 31. Rxa7 {[%clk 0:00:53.4]} 31... Rd7 {[%clk 0:00:15]}
32. a4 {[%clk 0:00:46.1]} 32... Rd1+ {[%clk 0:00:14.8]} 33. Kh2 {[%clk
0:00:46.9]} 33... Kd7 {[%clk 0:00:16]} 34. a5 {[%clk 0:00:43.8]} 34... Rd6
{[%clk 0:00:15.2]} 35. a6 {[%clk 0:00:36.9]} 35... Rc6 {[%clk 0:00:15.2]} 36.
Rd3+ {[%clk 0:00:33.7]} 36... Rd6 {[%clk 0:00:14.7]} 37. Rc3 {[%clk 0:00:30.6]}
37... Rc6 {[%clk 0:00:16.1]} 38. Rd3+ {[%clk 0:00:29.8]} 38... Rd6 {[%clk
0:00:17.1]} 39. Rf3 {[%clk 0:00:31.4]} 39... f6 {[%clk 0:00:16.8]} 40. Rg3
{[%clk 0:00:24.8]} 40... g5 {[%clk 0:00:17.8]} 41. Ra3 {[%clk 0:00:23.8]} 41...
Rc6 {[%clk 0:00:06.6]} 42. Rb7 {[%clk 0:00:25.1]} 42... R6xc7 {[%clk 0:00:04.7]}
43. Rb6 {[%clk 0:00:18.1]} 43... Ra8 {[%clk 0:00:05]} 44. Rd3+ {[%clk
0:00:18.4]} 44... Ke7 {[%clk 0:00:06.2]} 45. Rdd6 {[%clk 0:00:20]} 45... Rca7
{[%clk 0:00:03.4]} 46. Rxe6+ {[%clk 0:00:21.2]} 46... Kd7 {[%clk 0:00:04.5]} 47.
Rxf6 {[%clk 0:00:22.7]} 47... h5 {[%clk 0:00:05.9]} 48. Rh6 {[%clk 0:00:23.7]}
48... h4 {[%clk 0:00:05.5]} 49. Rbg6 {[%clk 0:00:25]} 49... Ke7 {[%clk
0:00:06.8]} 50. Kh3 {[%clk 0:00:22.6]} 50... Kf7 {[%clk 0:00:05.3]} 51. Kg4
{[%clk 0:00:24.1]} 51... Rg8 {[%clk 0:00:05.3]} 52. Rh7+ {[%clk 0:00:23.3]}
52... Kxg6 {[%clk 0:00:05.4]} 53. Rxa7 {[%clk 0:00:24.8]} 53... Rf8 {[%clk
0:00:05.6]} 54. f3 {[%clk 0:00:22.5]} 54... Rf4+ {[%clk 0:00:06]} 55. Kh3 {[%clk
0:00:23.7]} 55... Ra4 {[%clk 0:00:07.5]} 56. Kh2 {[%clk 0:00:22.6]} 56... Kh6
{[%clk 0:00:07.5]} 57. Kg1 {[%clk 0:00:23.8]} 57... Ra2 {[%clk 0:00:09.1]} 58.
Kf1 {[%clk 0:00:25]} 58... Kg6 {[%clk 0:00:10.1]} 59. Ra8 {[%clk 0:00:25.2]}
59... Kg7 {[%clk 0:00:09.7]} 60. a7 {[%clk 0:00:26.2]} 60... Kh7 {[%clk
0:00:11]} 61. Ke1 {[%clk 0:00:27.7]} 61... Kg7 {[%clk 0:00:12.3]} 62. Kd1 {[%clk
0:00:29.1]} 62... Kh7 {[%clk 0:00:12.4]} 63. Kc1 {[%clk 0:00:30.5]} 63... Kg7
{[%clk 0:00:13.1]} 64. Kb1 {[%clk 0:00:31.9]} 64... Ra6 {[%clk 0:00:14]} 65. Kb2
{[%clk 0:00:33.2]} 65... Ra5 {[%clk 0:00:15.3]} 66. Kc3 {[%clk 0:00:34.5]} 66...
Ra1 {[%clk 0:00:14.7]} 67. Kd4 {[%clk 0:00:34.9]} 67... Ra5 {[%clk 0:00:15.1]}
68. Ke4 {[%clk 0:00:35.9]} 68... Kh7 {[%clk 0:00:16.3]} 69. Kd4 {[%clk
0:00:32.2]} 69... Kg7 {[%clk 0:00:17.3]} 70. Kc4 {[%clk 0:00:33.6]} 70... Kh7
{[%clk 0:00:16.8]} 71. Kb4 {[%clk 0:00:35.2]} 71... Ra1 {[%clk 0:00:18]} 72. Kc5
{[%clk 0:00:36.6]} 72... Ra5+ {[%clk 0:00:16.5]} 73. Kd6 {[%clk 0:00:37.8]}
73... Kg7 {[%clk 0:00:15.6]} 74. Kc6 {[%clk 0:00:36.3]} 74... Ra1 {[%clk
0:00:16.2]} 75. Kc5 {[%clk 0:00:36.6]} 75... Kh7 {[%clk 0:00:16.7]} 76. Kd6
{[%clk 0:00:37.4]} 76... Kg7 {[%clk 0:00:15.9]} 77. Ke6 {[%clk 0:00:38.5]} 77...
Ra5 {[%clk 0:00:15.8]} 78. Kd7 {[%clk 0:00:35.8]} 78... Kh7 {[%clk 0:00:15.7]}
79. Ke7 {[%clk 0:00:37.2]} 79... Kg7 {[%clk 0:00:16.5]} 80. Ke6 {[%clk
0:00:38.7]} 80... Ra6+ {[%clk 0:00:13.4]} 81. Kf5 {[%clk 0:00:39.8]} 81... Ra5+
{[%clk 0:00:14.9]} 82. Kg4 {[%clk 0:00:41.1]} 82... Kh7 {[%clk 0:00:15.9]} 83.
f4 {[%clk 0:00:40.4]} 83... gxf4 {[%clk 0:00:15.6]} 84. Kxf4 {[%clk 0:00:41.9]}
84... Ra4+ {[%clk 0:00:15.5]} 85. Kg5 {[%clk 0:00:43.3]} 85... Kg7 {[%clk
0:00:16.4]} 86. Kh5 {[%clk 0:00:43]} 86... Kh7 {[%clk 0:00:16.9]} 87. Kg5 {[%clk
0:00:44.2]} 87... h3 {[%clk 0:00:10.7]} 88. gxh3 {[%clk 0:00:43.8]} 88... Kg7
{[%clk 0:00:11.7]} 89. h4 {[%clk 0:00:44.4]} 89... Kh7 {[%clk 0:00:12.5]} 90.
Kf5 {[%clk 0:00:45]} 90... Ra5+ {[%clk 0:00:13]} 91. Ke6 {[%clk 0:00:46]} 91...
Ra6+ {[%clk 0:00:12.6]} 92. Kd5 {[%clk 0:00:47.1]} 92... Ra1 {[%clk 0:00:13.8]}
93. Kc4 {[%clk 0:00:48.1]} 93... Kg7 {[%clk 0:00:14.8]} 94. h5 {[%clk
0:00:48.5]} 94... Kh7 {[%clk 0:00:15.7]} 95. Kb5 {[%clk 0:00:48.9]} 95... Rb1+
{[%clk 0:00:16.2]} 96. Kc4 {[%clk 0:00:50.3]} 96... Rc1+ {[%clk 0:00:17.4]} 97.
Kd3 {[%clk 0:00:51.8]} 97... Ra1 {[%clk 0:00:18.9]} 98. Kc2 {[%clk 0:00:53]}
98... Ra6 {[%clk 0:00:19.3]} 99. Kb2 {[%clk 0:00:54.4]} 99... Ra5 {[%clk
0:00:20.4]} 100. Kb3 {[%clk 0:00:55.6]} 100... Ra6 {[%clk 0:00:21.4]} 101. h6
{[%clk 0:00:56.6]} 101... Ra1 {[%clk 0:00:21.6]} 102. Kc2 {[%clk 0:00:57.4]}
102... Ra6 {[%clk 0:00:22.5]} 103. Kd3 {[%clk 0:00:58.8]} 103... Ra1 {[%clk
0:00:23.3]} 104. Ke4 {[%clk 0:01:00.2]} 104... Ra4+ {[%clk 0:00:23.8]} 105. Kf3
{[%clk 0:01:01.8]} 105... Ra3+ {[%clk 0:00:24.7]} 106. Kg4 {[%clk 0:01:03.4]}
106... Ra4+ {[%clk 0:00:25.8]} 107. Kg5 {[%clk 0:01:04.9]} 107... Ra5+ {[%clk
0:00:26.9]} 108. Kf6 {[%clk 0:01:06.3]} 108... Ra6+ {[%clk 0:00:27.3]} 109. Ke7
{[%clk 0:01:07.8]} 109... Ra1 {[%clk 0:00:28.8]} 110. Kd8 {[%clk 0:01:09.3]}
110... Rd1+ {[%clk 0:00:29.6]} 111. Ke8 {[%clk 0:01:10.8]} 111... Re1+ {[%clk
0:00:30.6]} 112. Kd8 {[%clk 0:01:12.4]} 112... Rd1+ {[%clk 0:00:31.8]} 113. Kc7
{[%clk 0:01:14.1]} 113... Rc1+ {[%clk 0:00:32.9]} 114. Kb6 {[%clk 0:01:16]}
114... Rb1+ {[%clk 0:00:34]} 115. Kc5 {[%clk 0:01:17.9]} 115... Rc1+ {[%clk
0:00:34.9]} 116. Kb4 {[%clk 0:01:19.8]} 116... Rb1+ {[%clk 0:00:35.6]} 117. Ka3
{[%clk 0:01:21.1]} 117... Ra1+ {[%clk 0:00:37.1]} 118. Kb4 {[%clk 0:01:22.7]}
118... Ra2 {[%clk 0:00:37.8]} 1/2-1/2